[Event "Late-Titled-Tuesday-Blitz-January-30-2024"]
[Site "Chess.com"]
[Date "2024.01.30"]
[Round "6"]
[White "OneTrickPony_82"]
[Black "Anar_Aliakbarov"]
[Result "1-0"]
[WhiteElo "2511"]
[BlackElo "2647"]
[TimeControl "180+1"]
[EndTime "15:08:26 PST"]
[Termination "OneTrickPony_82 won on time"]

1. d4 {[%clk 0:03:00.9]} 1... d5 {[%clk 0:02:56.8]} 2. c4 {[%clk 0:03:01]} 2...
e6 {[%clk 0:02:52.4]} 3. Nf3 {[%clk 0:03:00.9]} 3... Nf6 {[%clk 0:02:47.4]} 4.
Nc3 {[%clk 0:03:00.8]} 4... Bb4 {[%clk 0:02:47]} 5. Qa4+ {[%clk 0:03:00]} 5...
Nc6 {[%clk 0:02:45.5]} 6. e3 {[%clk 0:03:00.2]} 6... O-O {[%clk 0:02:44.2]} 7.
Bd2 {[%clk 0:03:00.4]} 7... a6 {[%clk 0:02:39.7]} 8. Qc2 {[%clk 0:02:53.7]} 8...
Re8 {[%clk 0:02:36.5]} 9. a3 {[%clk 0:02:31]} 9... Bd6 {[%clk 0:02:35.8]} 10. c5
{[%clk 0:02:30.8]} 10... Bf8 {[%clk 0:02:35.7]} 11. Bd3 {[%clk 0:02:20.1]} 11...
e5 {[%clk 0:02:33.4]} 12. dxe5 {[%clk 0:02:19.1]} 12... Nxe5 {[%clk 0:02:34.3]}
13. Nxe5 {[%clk 0:02:19.2]} 13... Rxe5 {[%clk 0:02:35.2]} 14. Ne2 {[%clk
0:02:15.4]} 14... c6 {[%clk 0:02:26.1]} 15. Bc3 {[%clk 0:02:06.4]} 15... Re8
{[%clk 0:02:16.3]} 16. Bxf6 {[%clk 0:02:01.9]} 16... Qxf6 {[%clk 0:02:17.2]} 17.
Bxh7+ {[%clk 0:02:01.9]} 17... Kh8 {[%clk 0:02:17.3]} 18. Bd3 {[%clk 0:01:59.2]}
18... a5 {[%clk 0:02:14.8]} 19. O-O {[%clk 0:01:52.8]} 19... a4 {[%clk
0:02:12.1]} 20. Nd4 {[%clk 0:01:46.4]} 20... Ra5 {[%clk 0:02:08.1]} 21. b4
{[%clk 0:01:44.7]} 21... axb3 {[%clk 0:02:07.7]} 22. Nxb3 {[%clk 0:01:45.4]}
22... Ra8 {[%clk 0:02:07.1]} 23. a4 {[%clk 0:01:33.5]} 23... g6 {[%clk
0:02:00.8]} 24. a5 {[%clk 0:01:33.5]} 24... Kg7 {[%clk 0:02:00.3]} 25. Ra4
{[%clk 0:01:33.1]} 25... Be7 {[%clk 0:01:35.2]} 26. Rc1 {[%clk 0:01:24.5]} 26...
Bd8 {[%clk 0:01:34.6]} 27. Qc3 {[%clk 0:01:21.2]} 27... Bc7 {[%clk 0:01:33.1]}
28. Qxf6+ {[%clk 0:01:17.2]} 28... Kxf6 {[%clk 0:01:34]} 29. g3 {[%clk
0:01:09.9]} 29... Ra7 {[%clk 0:01:28.2]} 30. h4 {[%clk 0:01:08.4]} 30... Bd7
{[%clk 0:01:26.2]} 31. Kg2 {[%clk 0:01:06.1]} 31... Rea8 {[%clk 0:01:26.6]} 32.
Rca1 {[%clk 0:01:05.2]} 32... Be5 {[%clk 0:01:23.8]} 33. R1a2 {[%clk 0:01:03.3]}
33... Be6 {[%clk 0:01:22]} 34. Nd4 {[%clk 0:00:59.7]} 34... Bc7 {[%clk
0:01:22.5]} 35. f4 {[%clk 0:00:52]} 35... Rxa5 {[%clk 0:01:19.5]} 36. Rxa5
{[%clk 0:00:50.7]} 36... Rxa5 {[%clk 0:01:20.4]} 37. Rxa5 {[%clk 0:00:50.8]}
37... Bxa5 {[%clk 0:01:21.3]} 38. Nxe6 {[%clk 0:00:49.7]} 38... fxe6 {[%clk
0:01:16.6]} 39. g4 {[%clk 0:00:48]} 39... Bb4 {[%clk 0:01:16.4]} 40. g5+ {[%clk
0:00:48]} 40... Kf7 {[%clk 0:01:11.3]} 41. e4 {[%clk 0:00:41.7]} 41... Bxc5
{[%clk 0:01:06.3]} 42. f5 {[%clk 0:00:36.1]} 42... exf5 {[%clk 0:01:01.5]} 43.
exf5 {[%clk 0:00:33.7]} 43... gxf5 {[%clk 0:00:59.5]} 44. Bxf5 {[%clk
0:00:34.2]} 44... Ke7 {[%clk 0:00:50.3]} 45. Kf3 {[%clk 0:00:32.1]} 45... b5
{[%clk 0:00:48.6]} 46. h5 {[%clk 0:00:31.3]} 46... Bd4 {[%clk 0:00:46.3]} 47. h6
{[%clk 0:00:30.6]} 47... Kf8 {[%clk 0:00:23]} 48. g6 {[%clk 0:00:26.2]} 48... c5
{[%clk 0:00:17.4]} 49. Be6 {[%clk 0:00:23.5]} 49... c4 {[%clk 0:00:10.3]} 50.
Bxd5 {[%clk 0:00:23.5]} 50... c3 {[%clk 0:00:11]} 51. Bb3 {[%clk 0:00:23.5]}
51... b4 {[%clk 0:00:11.1]} 52. Ke4 {[%clk 0:00:23.5]} 52... Bf6 {[%clk
0:00:04.9]} 53. Kf5 {[%clk 0:00:23.3]} 53... Bd4 {[%clk 0:00:05]} 54. Kg5 {[%clk
0:00:17.7]} 54... Be3+ {[%clk 0:00:04.5]} 55. Kh5 {[%clk 0:00:18.1]} 55... Bd4
{[%clk 0:00:03]} 56. Kg4 {[%clk 0:00:17.7]} 56... Be5 {[%clk 0:00:01.7]} 57. Kg5
{[%clk 0:00:16.4]} 57... Bh8 {[%clk 0:00:02.6]} 58. Kf5 {[%clk 0:00:14.6]} 58...
Bd4 {[%clk 0:00:03.2]} 59. Ke4 {[%clk 0:00:14.5]} 59... Bh8 {[%clk 0:00:03.6]}
60. Kd3 {[%clk 0:00:14.1]} 60... Bf6 {[%clk 0:00:04.2]} 61. Ke4 {[%clk
0:00:11.4]} 61... Bh8 {[%clk 0:00:04.1]} 62. Kd5 {[%clk 0:00:11.5]} 62... Bf6
{[%clk 0:00:03]} 63. Kc5 {[%clk 0:00:11.7]} 63... c2 {[%clk 0:00:03.6]} 64. Bxc2
{[%clk 0:00:11.4]} 64... Bg5 {[%clk 0:00:02.9]} 65. g7+ {[%clk 0:00:11.4]} 65...
Kf7 {[%clk 0:00:02.1]} 66. Bb3+ {[%clk 0:00:11.6]} 1-0

[Event "Late-Titled-Tuesday-Blitz-January-30-2024"]
[Site "Chess.com"]
[Date "2024.01.30"]
[Round "6"]
[White "K_A_S_T_O_R"]
[Black "Hamisandwich"]
[Result "1-0"]
[WhiteElo "2917"]
[BlackElo "2721"]
[TimeControl "180+1"]
[EndTime "15:08:27 PST"]
[Termination "K_A_S_T_O_R won on time"]

1. e4 {[%clk 0:02:54.6]} 1... c6 {[%clk 0:02:59.9]} 2. d4 {[%clk 0:02:49.5]}
2... d5 {[%clk 0:03:00.8]} 3. exd5 {[%clk 0:02:49.5]} 3... cxd5 {[%clk
0:03:01.7]} 4. c4 {[%clk 0:02:50.2]} 4... Nf6 {[%clk 0:03:01.9]} 5. Nc3 {[%clk
0:02:50.7]} 5... a6 {[%clk 0:02:59]} 6. cxd5 {[%clk 0:02:44.8]} 6... Nxd5 {[%clk
0:02:59.9]} 7. Bc4 {[%clk 0:02:44.3]} 7... Nxc3 {[%clk 0:02:50.9]} 8. Qb3 {[%clk
0:02:32.1]} 8... Nd5 {[%clk 0:02:32.3]} 9. Bxd5 {[%clk 0:02:31.7]} 9... e6
{[%clk 0:02:32.9]} 10. Bxb7 {[%clk 0:02:27]} 10... Bxb7 {[%clk 0:02:33.8]} 11.
Qxb7 {[%clk 0:02:26.4]} 11... Nd7 {[%clk 0:02:12.4]} 12. Nf3 {[%clk 0:02:18.2]}
12... Rb8 {[%clk 0:01:57.7]} 13. Qxa6 {[%clk 0:02:17.7]} 13... Bb4+ {[%clk
0:01:58.4]} 14. Ke2 {[%clk 0:02:17.5]} 14... O-O {[%clk 0:01:53.5]} 15. Rd1
{[%clk 0:02:08.9]} 15... Nf6 {[%clk 0:01:46.4]} 16. Kf1 {[%clk 0:02:08.7]} 16...
Qd5 {[%clk 0:01:36.8]} 17. Qd3 {[%clk 0:02:07.3]} 17... Bd6 {[%clk 0:01:28.5]}
18. b3 {[%clk 0:02:00.6]} 18... Rfd8 {[%clk 0:01:11.5]} 19. Bg5 {[%clk
0:01:58.9]} 19... Be7 {[%clk 0:01:02.7]} 20. Rac1 {[%clk 0:01:58.1]} 20... h6
{[%clk 0:01:02.8]} 21. Bh4 {[%clk 0:01:54.9]} 21... g5 {[%clk 0:00:58.4]} 22.
Bg3 {[%clk 0:01:54.6]} 22... Ra8 {[%clk 0:00:59.3]} 23. Rc2 {[%clk 0:01:44.1]}
23... Ne4 {[%clk 0:00:59.6]} 24. Kg1 {[%clk 0:01:35.4]} 24... f5 {[%clk
0:00:29.1]} 25. Bc7 {[%clk 0:01:29.3]} 25... Rf8 {[%clk 0:00:22.4]} 26. Qc4
{[%clk 0:01:24]} 26... Qxc4 {[%clk 0:00:14.8]} 27. bxc4 {[%clk 0:01:21.1]} 27...
Rfc8 {[%clk 0:00:14.7]} 28. Bb6 {[%clk 0:01:11.9]} 28... Ra6 {[%clk 0:00:12.4]}
29. Rb1 {[%clk 0:01:08.6]} 29... Ra4 {[%clk 0:00:10]} 30. Ne5 {[%clk 0:01:01.3]}
30... Bf6 {[%clk 0:00:09.4]} 31. f3 {[%clk 0:01:01.5]} 31... Bxe5 {[%clk
0:00:09.7]} 32. dxe5 {[%clk 0:00:54.6]} 32... Nc5 {[%clk 0:00:07.1]} 33. Rb5
{[%clk 0:00:49.5]} 33... Nd7 {[%clk 0:00:07]} 34. Bd4 {[%clk 0:00:40.1]} 34...
Rcxc4 {[%clk 0:00:07.3]} 35. Rxc4 {[%clk 0:00:40.7]} 35... Rxc4 {[%clk
0:00:08.2]} 36. Bb2 {[%clk 0:00:41.3]} 36... Rc2 {[%clk 0:00:06.9]} 37. a4
{[%clk 0:00:38.1]} 37... Rc4 {[%clk 0:00:04.3]} 38. a5 {[%clk 0:00:37]} 38...
Ra4 {[%clk 0:00:04.9]} 39. Kf1 {[%clk 0:00:34.2]} 39... f4 {[%clk 0:00:05.5]}
40. Ke2 {[%clk 0:00:33.5]} 40... Kf7 {[%clk 0:00:06.2]} 41. Kd3 {[%clk
0:00:33.8]} 41... Kg6 {[%clk 0:00:03.3]} 42. Kc2 {[%clk 0:00:29.8]} 42... Rc4+
{[%clk 0:00:03.7]} 43. Kb3 {[%clk 0:00:29.7]} 43... Rc6 {[%clk 0:00:03.1]} 44.
Bd4 {[%clk 0:00:29.2]} 44... Kf5 {[%clk 0:00:03.1]} 45. Kb4 {[%clk 0:00:28.9]}
45... Rc8 {[%clk 0:00:03.7]} 46. Rb7 {[%clk 0:00:27.6]} 46... Nb8 {[%clk
0:00:03.9]} 47. Kb5 {[%clk 0:00:23]} 47... Nc6 {[%clk 0:00:04]} 48. Rf7+ {[%clk
0:00:20]} 48... Kg6 {[%clk 0:00:03.8]} 49. Rf6+ {[%clk 0:00:20.5]} 49... Kg7
{[%clk 0:00:03.6]} 50. Ba1 {[%clk 0:00:20.2]} 50... Nd8 {[%clk 0:00:03.9]} 51.
a6 {[%clk 0:00:19.4]} 51... Rb8+ {[%clk 0:00:04.5]} 52. Kc5 {[%clk 0:00:19.8]}
52... Rb1 {[%clk 0:00:02.9]} 53. Bc3 {[%clk 0:00:19.4]} 53... Rc1 {[%clk
0:00:03.3]} 54. Kc4 {[%clk 0:00:19.3]} 54... Nc6 {[%clk 0:00:02.6]} 55. Rxe6
{[%clk 0:00:19]} 55... Na5+ {[%clk 0:00:03.2]} 56. Kd3 {[%clk 0:00:18.8]} 56...
Nb3 {[%clk 0:00:03.2]} 57. Re7+ {[%clk 0:00:18.2]} 57... Kf8 {[%clk 0:00:03.2]}
58. a7 {[%clk 0:00:18.6]} 58... Nc5+ {[%clk 0:00:02.9]} 59. Kc4 {[%clk 0:00:19]}
59... Kxe7 {[%clk 0:00:03.4]} 60. a8=Q {[%clk 0:00:18.7]} 60... Nd7 {[%clk
0:00:04.2]} 61. Qa3+ {[%clk 0:00:18.3]} 1-0

[Event "Late-Titled-Tuesday-Blitz-January-30-2024"]
[Site "Chess.com"]
[Date "2024.01.30"]
[Round "6"]
[White "alexrustemov"]
[Black "Kleyton_Lima"]
[Result "0-1"]
[WhiteElo "2757"]
[BlackElo "2602"]
[TimeControl "180+1"]
[EndTime "15:08:36 PST"]
[Termination "Kleyton_Lima won on time"]

1. d4 {[%clk 0:03:00.9]} 1... Nf6 {[%clk 0:02:54.3]} 2. c4 {[%clk 0:03:01.2]}
2... e6 {[%clk 0:02:55]} 3. Nf3 {[%clk 0:03:01.3]} 3... b6 {[%clk 0:02:54.8]} 4.
a3 {[%clk 0:03:00.4]} 4... Be7 {[%clk 0:02:52.9]} 5. Nc3 {[%clk 0:03:00]} 5...
Bb7 {[%clk 0:02:53.1]} 6. Qc2 {[%clk 0:02:56.1]} 6... d5 {[%clk 0:02:52.8]} 7.
cxd5 {[%clk 0:02:54.6]} 7... Nxd5 {[%clk 0:02:51.9]} 8. Bd2 {[%clk 0:02:49]}
8... Nxc3 {[%clk 0:02:36.1]} 9. Bxc3 {[%clk 0:02:47.5]} 9... O-O {[%clk
0:02:35.5]} 10. Rd1 {[%clk 0:02:43.3]} 10... Nd7 {[%clk 0:02:34.6]} 11. e3
{[%clk 0:02:39.4]} 11... Nf6 {[%clk 0:02:34.8]} 12. Bd3 {[%clk 0:02:27.2]} 12...
h6 {[%clk 0:02:31.6]} 13. O-O {[%clk 0:02:26.1]} 13... Rc8 {[%clk 0:02:25.6]}
14. Qa4 {[%clk 0:02:20.6]} 14... a5 {[%clk 0:02:16.6]} 15. Ne5 {[%clk
0:02:15.1]} 15... Qe8 {[%clk 0:02:06.8]} 16. Bb5 {[%clk 0:02:06.8]} 16... c6
{[%clk 0:02:06.7]} 17. Be2 {[%clk 0:02:06.9]} 17... Bd6 {[%clk 0:02:02.4]} 18.
Qb3 {[%clk 0:01:59.3]} 18... Bxe5 {[%clk 0:02:00.6]} 19. dxe5 {[%clk 0:01:59.1]}
19... Nd7 {[%clk 0:02:00.8]} 20. Rd6 {[%clk 0:01:50]} 20... Rc7 {[%clk
0:01:19.8]} 21. Rfd1 {[%clk 0:01:47.9]} 21... Ba8 {[%clk 0:01:17.5]} 22. Qc2
{[%clk 0:01:33.9]} 22... Qc8 {[%clk 0:01:14.6]} 23. Qd2 {[%clk 0:01:25]} 23...
Nc5 {[%clk 0:01:12.8]} 24. Rd8 {[%clk 0:01:17.4]} 24... Rxd8 {[%clk 0:01:04.4]}
25. Qxd8+ {[%clk 0:01:16.8]} 25... Kh7 {[%clk 0:01:05.3]} 26. b4 {[%clk
0:01:15.6]} 26... Na4 {[%clk 0:01:01.2]} 27. Qd3+ {[%clk 0:00:54.6]} 27... g6
{[%clk 0:00:57.1]} 28. Be1 {[%clk 0:00:49.7]} 28... Nb2 {[%clk 0:00:50.2]} 29.
Qc3 {[%clk 0:00:30.8]} 29... Nxd1 {[%clk 0:00:49.3]} 30. Bxd1 {[%clk 0:00:31.6]}
30... c5 {[%clk 0:00:46.7]} 31. bxa5 {[%clk 0:00:30.5]} 31... bxa5 {[%clk
0:00:45.4]} 32. Qxa5 {[%clk 0:00:30.6]} 32... Rd7 {[%clk 0:00:44.5]} 33. Be2
{[%clk 0:00:28.5]} 33... c4 {[%clk 0:00:43.8]} 34. f3 {[%clk 0:00:27.4]} 34...
Rd5 {[%clk 0:00:37.7]} 35. Qa7 {[%clk 0:00:22.2]} 35... Qb7 {[%clk 0:00:26.1]}
36. Qxb7 {[%clk 0:00:21.8]} 36... Bxb7 {[%clk 0:00:27]} 37. Bc3 {[%clk
0:00:22.2]} 37... Rb5 {[%clk 0:00:24]} 38. Bb4 {[%clk 0:00:21.9]} 38... Rxe5
{[%clk 0:00:22.8]} 39. Kf2 {[%clk 0:00:18.7]} 39... Ba6 {[%clk 0:00:20.9]} 40.
e4 {[%clk 0:00:16.3]} 40... Rb5 {[%clk 0:00:18.1]} 41. Ke3 {[%clk 0:00:13.4]}
41... Rb6 {[%clk 0:00:14.8]} 42. Kd4 {[%clk 0:00:13.2]} 42... Rc6 {[%clk
0:00:15.3]} 43. Kc3 {[%clk 0:00:12.4]} 43... Bb5 {[%clk 0:00:13.8]} 44. f4
{[%clk 0:00:10.5]} 44... g5 {[%clk 0:00:11.1]} 45. g3 {[%clk 0:00:10.4]} 45...
Rc8 {[%clk 0:00:09]} 46. Bf3 {[%clk 0:00:09.7]} 46... Rd8 {[%clk 0:00:08.1]} 47.
Be2 {[%clk 0:00:10.2]} 47... Kg6 {[%clk 0:00:07.6]} 48. Bc5 {[%clk 0:00:10.2]}
48... Rc8 {[%clk 0:00:07.7]} 49. Kb4 {[%clk 0:00:10.1]} 49... c3 {[%clk
0:00:05.4]} 50. Bd1 {[%clk 0:00:10]} 50... Bd3 {[%clk 0:00:03.9]} 51. f5+ {[%clk
0:00:07.2]} 51... exf5 {[%clk 0:00:04.1]} 52. exf5+ {[%clk 0:00:07.5]} 52...
Kxf5 {[%clk 0:00:04.5]} 53. g4+ {[%clk 0:00:07.3]} 53... Kf4 {[%clk 0:00:03.9]}
54. Bd6+ {[%clk 0:00:07.3]} 54... Ke3 {[%clk 0:00:04.5]} 55. Bc5+ {[%clk
0:00:03.9]} 55... Rxc5 {[%clk 0:00:04]} 56. Kxc5 {[%clk 0:00:04.8]} 56... c2
{[%clk 0:00:04.9]} 57. Bxc2 {[%clk 0:00:04.7]} 57... Bxc2 {[%clk 0:00:05.8]} 58.
Kd5 {[%clk 0:00:04.8]} 58... f5 {[%clk 0:00:05.4]} 59. gxf5 {[%clk 0:00:04.4]}
59... Bxf5 {[%clk 0:00:06.3]} 60. Ke5 {[%clk 0:00:05]} 60... Be4 {[%clk
0:00:06.6]} 61. Kf6 {[%clk 0:00:05.9]} 61... Kf4 {[%clk 0:00:06.7]} 62. a4
{[%clk 0:00:04.9]} 62... h5 {[%clk 0:00:07.2]} 63. a5 {[%clk 0:00:05.5]} 63...
h4 {[%clk 0:00:07.6]} 64. a6 {[%clk 0:00:06.1]} 64... g4 {[%clk 0:00:08.1]} 65.
a7 {[%clk 0:00:06.3]} 65... g3 {[%clk 0:00:08.5]} 66. hxg3+ {[%clk 0:00:04.3]}
66... hxg3 {[%clk 0:00:09.4]} 0-1

[Event "Late-Titled-Tuesday-Blitz-January-30-2024"]
[Site "Chess.com"]
[Date "2024.01.30"]
[Round "6"]
[White "jmpion"]
[Black "MaxLeto"]
[Result "0-1"]
[WhiteElo "2520"]
[BlackElo "2419"]
[TimeControl "180+1"]
[EndTime "15:08:37 PST"]
[Termination "MaxLeto won by resignation"]

1. e4 {[%clk 0:03:00.9]} 1... c5 {[%clk 0:02:55.5]} 2. Nf3 {[%clk 0:03:00.2]}
2... d6 {[%clk 0:02:56.1]} 3. d4 {[%clk 0:03:00.3]} 3... cxd4 {[%clk 0:02:57]}
4. Nxd4 {[%clk 0:03:00.8]} 4... Nf6 {[%clk 0:02:57.7]} 5. Nc3 {[%clk 0:03:01.6]}
5... a6 {[%clk 0:02:58.5]} 6. h3 {[%clk 0:03:01.9]} 6... e6 {[%clk 0:02:56.9]}
7. g4 {[%clk 0:03:01.6]} 7... Qc7 {[%clk 0:02:57.2]} 8. Bg2 {[%clk 0:03:00.6]}
8... Nfd7 {[%clk 0:02:57.5]} 9. g5 {[%clk 0:02:50.8]} 9... b5 {[%clk 0:02:51.1]}
10. h4 {[%clk 0:02:47.5]} 10... Bb7 {[%clk 0:02:50.8]} 11. h5 {[%clk 0:02:41]}
11... Nc5 {[%clk 0:02:34]} 12. a3 {[%clk 0:02:36.5]} 12... Nc6 {[%clk
0:02:08.9]} 13. Be3 {[%clk 0:02:35.6]} 13... Ne5 {[%clk 0:02:06.4]} 14. f4
{[%clk 0:02:13.1]} 14... Nc4 {[%clk 0:02:06.2]} 15. Bc1 {[%clk 0:02:13.4]} 15...
e5 {[%clk 0:01:48.2]} 16. Nf5 {[%clk 0:02:01.2]} 16... exf4 {[%clk 0:01:44.2]}
17. Bxf4 {[%clk 0:01:55.4]} 17... O-O-O {[%clk 0:01:07.8]} 18. b3 {[%clk
0:01:30.4]} 18... Ne5 {[%clk 0:01:05.7]} 19. Qd2 {[%clk 0:01:12.7]} 19... Ne6
{[%clk 0:01:03.6]} 20. Be3 {[%clk 0:01:06.5]} 20... g6 {[%clk 0:00:56.9]} 21.
hxg6 {[%clk 0:01:01.9]} 21... fxg6 {[%clk 0:00:57.8]} 22. Nd4 {[%clk 0:00:59.9]}
22... Nxd4 {[%clk 0:00:22.8]} 23. Bxd4 {[%clk 0:00:57.6]} 23... Bg7 {[%clk
0:00:23.7]} 24. O-O-O {[%clk 0:00:48.6]} 24... Kb8 {[%clk 0:00:23.8]} 25. a4
{[%clk 0:00:40.1]} 25... b4 {[%clk 0:00:20.2]} 26. Nd5 {[%clk 0:00:36.5]} 26...
Bxd5 {[%clk 0:00:19.4]} 27. exd5 {[%clk 0:00:23.8]} 27... a5 {[%clk 0:00:20]}
28. Qe3 {[%clk 0:00:19.1]} 28... Rc8 {[%clk 0:00:19.7]} 29. Rd2 {[%clk
0:00:17.5]} 29... Ng4 {[%clk 0:00:17.8]} 30. Qf4 {[%clk 0:00:16.3]} 30... Bxd4
{[%clk 0:00:17.2]} 31. Qxd4 {[%clk 0:00:17.2]} 31... Ne5 {[%clk 0:00:16.5]} 32.
Bh3 {[%clk 0:00:13.9]} 32... Rcf8 {[%clk 0:00:14.3]} 33. Bg2 {[%clk 0:00:10.2]}
33... Rf5 {[%clk 0:00:12.4]} 34. Re1 {[%clk 0:00:10.4]} 34... Rxg5 {[%clk
0:00:12.1]} 35. Be4 {[%clk 0:00:10]} 35... h5 {[%clk 0:00:11.5]} 36. Rg1 {[%clk
0:00:09.4]} 36... Rxg1+ {[%clk 0:00:08.8]} 37. Qxg1 {[%clk 0:00:10.3]} 37... h4
{[%clk 0:00:09.3]} 38. Bxg6 {[%clk 0:00:08.9]} 38... Rg8 {[%clk 0:00:08.8]} 39.
Rg2 {[%clk 0:00:08.5]} 39... h3 {[%clk 0:00:03.6]} 40. Rg5 {[%clk 0:00:05.7]}
40... h2 {[%clk 0:00:03.1]} 41. Qxh2 {[%clk 0:00:05.9]} 41... Rxg6 {[%clk
0:00:03.6]} 42. Rxg6 {[%clk 0:00:06.5]} 42... Nxg6 {[%clk 0:00:04.5]} 43. Qg3
{[%clk 0:00:06.1]} 43... Ne5 {[%clk 0:00:04.9]} 44. Qg8+ {[%clk 0:00:06.4]}
44... Kb7 {[%clk 0:00:05.3]} 45. Qe6 {[%clk 0:00:06.3]} 45... Kb6 {[%clk
0:00:05.6]} 46. Qf6 {[%clk 0:00:06]} 46... Qc5 {[%clk 0:00:05.5]} 47. Qd8+
{[%clk 0:00:05.9]} 47... Qc7 {[%clk 0:00:06.2]} 48. Qf6 {[%clk 0:00:06.6]} 48...
Kc5 {[%clk 0:00:06.8]} 49. Qf2+ {[%clk 0:00:06.9]} 49... Kxd5 {[%clk 0:00:07.1]}
50. Qd2+ {[%clk 0:00:07]} 50... Kc6 {[%clk 0:00:07.4]} 51. Kb2 {[%clk
0:00:07.2]} 51... Kb6 {[%clk 0:00:07.7]} 52. Qe3+ {[%clk 0:00:07.4]} 52... Qc5
{[%clk 0:00:08.2]} 53. Qh6 {[%clk 0:00:08]} 53... Qc3+ {[%clk 0:00:08.7]} 54.
Kb1 {[%clk 0:00:08.5]} 54... Qe1+ {[%clk 0:00:08.1]} 55. Kb2 {[%clk 0:00:08.3]}
55... Qc3+ {[%clk 0:00:08.6]} 56. Kb1 {[%clk 0:00:09.1]} 56... Nc6 {[%clk
0:00:08.6]} 57. Qxd6 {[%clk 0:00:08.9]} 57... Qe1+ {[%clk 0:00:08.2]} 58. Kb2
{[%clk 0:00:09]} 58... Qe5+ {[%clk 0:00:08.8]} 59. Qxe5 {[%clk 0:00:08.8]} 59...
Nxe5 {[%clk 0:00:09.7]} 60. c3 {[%clk 0:00:09.4]} 60... Nd3+ {[%clk 0:00:09.7]}
61. Kc2 {[%clk 0:00:09.5]} 61... Nc5 {[%clk 0:00:10]} 62. cxb4 {[%clk
0:00:09.6]} 62... axb4 {[%clk 0:00:10.9]} 63. Kb2 {[%clk 0:00:10.2]} 63... Kc6
{[%clk 0:00:11.3]} 64. Kc2 {[%clk 0:00:10.6]} 64... Kd5 {[%clk 0:00:11.9]} 65.
Kb2 {[%clk 0:00:10.9]} 65... Kd4 {[%clk 0:00:11.1]} 66. Kc2 {[%clk 0:00:11.1]}
66... Nb7 {[%clk 0:00:11.3]} 67. Kb2 {[%clk 0:00:10.6]} 67... Na5 {[%clk
0:00:11.8]} 68. Kc2 {[%clk 0:00:11.3]} 68... Ke3 {[%clk 0:00:12.1]} 69. Kc1
{[%clk 0:00:10.8]} 69... Kd3 {[%clk 0:00:12.4]} 70. Kb2 {[%clk 0:00:11.3]} 70...
Kd2 {[%clk 0:00:13]} 71. Ka2 {[%clk 0:00:11.7]} 71... Kc3 {[%clk 0:00:13.1]} 72.
Kb1 {[%clk 0:00:12.2]} 72... Kxb3 {[%clk 0:00:13.7]} 73. Ka1 {[%clk 0:00:12.5]}
73... Kxa4 {[%clk 0:00:14.6]} 74. Kb1 {[%clk 0:00:13.4]} 74... b3 {[%clk
0:00:15.3]} 75. Kb2 {[%clk 0:00:14.3]} 75... Kb4 {[%clk 0:00:15.8]} 76. Kb1
{[%clk 0:00:15.2]} 76... Ka3 {[%clk 0:00:16.4]} 77. Ka1 {[%clk 0:00:16.1]} 77...
Nc4 {[%clk 0:00:16.5]} 78. Kb1 {[%clk 0:00:17]} 78... b2 {[%clk 0:00:16.7]} 79.
Kc2 {[%clk 0:00:17.4]} 79... Ka2 {[%clk 0:00:17.1]} 0-1